bitfinex/quotes_SOLUSD_20250821
["timestamp","ask_amount","ask_price","bid_price","bid_amount"]
[1755800656930,42.72,182.05,182.04,0.75]
[1755800657115,47.32684079,182.05,182.04,0.75]
[1755800658342,42.72,182.05,182.04,0.75]
[1755800658509,47.32684079,182.05,182.04,0.75]
[1755800658909,42.72,182.05,182.04,0.75]
[1755800659134,47.32684079,182.05,182.04,0.75]
[1755800659435,42.72,182.05,182.04,0.75]
[1755800659601,47.32684079,182.05,182.04,0.75]
[1755800659802,42.72,182.05,182.04,0.75]
[1755800660003,47.32684079,182.05,182.04,0.75]
[1755800661010,47.30684079,182.05,182.04,0.75]
[1755800662553,42.7,182.05,182.04,0.75]
[1755800663327,47.30684079,182.05,182.04,0.75]
[1755800663528,42.7,182.05,182.04,0.75]
[1755800664054,4.66684079,182.06,182.04,0.75]
[1755800664255,42.7,182.05,182.04,0.75]
[1755800665224,47.30684079,182.05,182.04,0.75]
[1755800668080,47.30684079,182.05,182.04,0.03]
[1755800668428,47.30684079,182.05,182.04,0.71]
[1755800668429,42.7,182.05,182.04,0.71]
[1755800668666,0.06,182.06,182.04,0.71]
[1755800668962,42.7,182.05,182.04,0.71]
[1755800675561,42.7,182.05,182.04,0.03]
[1755800675744,42.7,182.05,182.04,0.71]
[1755800676944,42.68,182.05,182.04,0.71]
[1755800677843,46.33770032,182.05,182.04,0.03]
[1755800678050,47.04770032,182.05,182.04,0.03]
[1755800678476,46.33770032,182.05,182.04,0.03]
[1755800680370,42.68,182.05,182.04,0.03]
[1755800680540,42.68,182.05,182.04,0.71]
[1755800681764,42.68,182.05,182.04,0.03]
[1755800682269,42.68,182.05,182.04,0.71]
[1755800682447,42.68,182.05,182.04,0.03]
[1755800682844,42.68,182.05,182.04,0.71]
[1755800683478,42.68,182.05,182.04,0.03]
[1755800683664,47.04770032,182.05,182.04,0.03]
[1755800684245,46.33770032,182.05,182.04,0.03]
[1755800684439,42.68,182.05,182.04,0.03]
[1755800687682,0.06,182.06,182.04,0.72]
[1755800688154,0.06,182.06,182.05,0.69]
[1755800688357,0.06,182.06,182.05,4.34770032]
[1755800689155,0.06,182.06,182.05,0.69]
[1755800689469,0.06,182.06,182.05,4.34770032]
[1755800689676,0.06,182.06,182.05,17.94329433]
[1755800690374,0.06,182.06,182.05,20.14502833]
[1755800690770,0.06,182.06,182.05,25.63802475]
[1755800691143,0.06,182.06,182.05,16.48732801]
[1755800691347,0.06,182.06,182.05,14.28559401]
[1755800691649,0.06,182.06,182.05,17.94329433]
[1755800691954,0.06,182.06,182.05,23.43629075]
[1755800692271,0.06,182.06,182.05,19.77859043]
[1755800692447,0.06,182.06,182.05,19.99698493]
[1755800693249,0.06,182.06,182.05,25.48998135]
[1755800693910,0.06,182.06,182.05,19.99698493]
[1755800694988,0.06,182.06,182.05,14.28559401]
[1755800695167,0.06,182.06,182.05,25.48998135]
[1755800695765,0.06,182.06,182.05,19.77859043]
[1755800695963,0.06,182.06,182.05,25.48998135]
[1755800696272,0.06,182.06,182.05,19.77859043]
[1755800696454,0.06,182.06,182.05,25.48998135]
[1755800697675,0.06,182.06,182.05,19.99698493]
[1755800700267,0.06,182.06,182.05,14.28559401]
[1755800700457,0.06,182.06,182.05,19.30698493]
[1755800702487,0.75,182.06,182.05,13.59559401]
[1755800702674,0.06,182.06,182.05,13.59559401]
[1755800704564,0.06,182.06,182.05,19.30698493]
[1755800705681,0.06,182.06,182.05,19.99698493]
[1755800705880,0.06,182.06,182.05,19.30698493]
[1755800707096,0.06,182.06,182.05,19.99698493]
[1755800707797,0.06,182.06,182.05,14.28559401]
[1755800708100,0.06,182.06,182.05,19.99698493]
[1755800710187,0.06,182.06,182.05,22.19859793]
[1755800710675,0.06,182.06,182.05,27.69159435]
[1755800711676,0.06,182.06,182.05,70.33159435]
[1755800713407,0.06,182.06,182.05,102.04298527]
[1755800713601,0.06,182.06,182.05,102.32730841]
[1755800713800,0.06,182.06,182.05,76.32730841]
[1755800714373,0.06,182.06,182.05,83.17097392]
[1755800716212,0.06,182.06,182.05,68.55781604]
[1755800717209,0.06,182.06,182.05,25.91781604]
[1755800717412,0.06,182.06,182.05,68.55781604]
[1755800720216,0.06,182.06,182.05,64.90452657]
[1755800720414,0.06,182.06,182.05,68.55781604]
[1755800721200,0.06,182.06,182.05,94.55781604]
[1755800721400,0.06,182.06,182.05,68.55781604]
[1755800721604,0.06,182.06,182.05,94.55781604]
[1755800721802,0.06,182.06,182.05,94.53781604]
[1755800723442,0.06,182.06,182.05,68.53781604]
[1755800724921,0.06,182.06,182.05,83.15097392]
[1755800725617,0.06,182.06,182.05,68.53781604]
[1755800727002,0.06,182.06,182.05,83.15097392]
[1755800728923,0.06,182.06,182.05,68.53781604]
[1755800730927,0.06,182.06,182.05,50.9434929]
[1755800731231,0.06,182.06,182.05,68.2434929]
[1755800731451,0.06,182.06,182.05,67.5634929]
[1755800731597,0.06,182.06,182.05,68.2434929]
[1755800732001,0.06,182.06,182.05,24.9434929]
[1755800732302,0.06,182.06,182.05,67.5634929]
[1755800734807,0.06,182.06,182.05,58.41720701]
[1755800735104,0.06,182.06,182.05,62.07049648]
[1755800735105,0.78,182.06,182.05,62.07049648]
[1755800735516,0.78,182.06,182.05,88.07049648]
[1755800735754,0.78,182.06,182.05,13.59559401]
[1755800735927,0.78,182.06,182.05,59.84888348]
[1755800738032,0.78,182.06,182.05,56.19559401]
[1755800738536,0.78,182.06,182.05,13.59559401]
[1755800738745,0.78,182.06,182.05,17.24888348]
[1755800739620,0.78,182.06,182.04,46.28328947]
[1755800740016,0.78,182.06,182.04,3.68328947]
[1755800740335,0.78,182.06,182.04,42.63]
[1755800740534,0.78,182.06,182.05,3.65328947]
[1755800741042,0.06,182.06,182.05,17.24888348]
[1755800741334,0.06,182.06,182.05,17.92888348]
[1755800741740,0.06,182.06,182.05,38.03503778]
[1755800742032,0.06,182.06,182.05,40.23677178]
[1755800742211,0.06,182.06,182.05,25.6236139]
[1755800743957,0.06,182.06,182.05,51.6236139]
[1755800744128,0.06,182.06,182.05,62.05061748]
[1755800744831,0.06,182.06,182.05,19.45061748]
[1755800745068,0.06,182.06,182.05,62.05061748]
[1755800745934,0.06,182.06,182.05,67.5436139]
[1755800746131,0.06,182.06,182.05,62.05061748]
[1755800746374,0.78,182.06,182.05,21.50938095]
[1755800746540,0.78,182.06,182.05,64.10938095]
[1755800747275,0.06,182.06,182.05,64.10938095]
[1755800747771,0.06,182.06,182.05,64.79938095]
[1755800748173,0.06,182.06,182.05,64.10938095]
[1755800750735,0.06,182.06,182.05,70.29237737]
[1755800751359,0.06,182.06,182.05,64.79938095]
[1755800751866,0.06,182.06,182.05,64.10938095]
[1755800752651,0.06,182.06,182.05,58.39732801]
[1755800753040,0.06,182.06,182.05,64.10938095]
[1755800753244,0.73,182.06,182.05,15.79732801]
[1755800753444,0.73,182.06,182.05,64.10938095]
[1755800754477,0.73,182.06,182.05,56.19559401]
[1755800756051,0.06,182.06,182.05,61.90764695]
[1755800756472,0.06,182.06,182.05,64.10950195]
[1755800756873,0.06,182.06,182.05,64.79950195]
[1755800757178,0.06,182.06,182.05,70.29249837]
[1755800759885,0.06,182.06,182.05,70.57682151]
[1755800760368,0.06,182.06,182.05,76.28887445]
[1755800760753,0.06,182.07,182.06,13.87991715]
[1755800760981,0.06,182.07,182.06,25.99402303]
[1755800762464,0.06,182.07,182.06,25.7746648]
[1755800765067,0.06,182.07,182.06,31.48671774]
[1755800766367,0.58407098,182.12,182.11,39.59559401]
[1755800766568,0.58407098,182.12,182.11,87.88764695]
[1755800767593,0.58407098,182.12,182.11,104.39519895]
[1755800768496,0.58407098,182.12,182.11,109.88638559]
[1755800768877,0.58407098,182.12,182.11,98.68314601]
[1755800769073,0.58407098,182.12,182.11,104.39519895]
[1755800769796,0.58407098,182.12,182.11,109.88638559]
[1755800769976,42.86432314,182.21,182.12,13.59559401]
[1755800770180,0.67,182.13,182.12,19.30764695]
[1755800770380,5.71205294,182.16,182.12,19.30764695]
[1755800770582,0.67,182.15,182.12,61.88764695]
[1755800770776,367.9,182.22,182.14,13.59559401]
[1755800770972,0.67,182.16,182.14,48.29205294]
[1755800771178,5.71205294,182.18,182.14,48.29205294]
[1755800771387,0.67,182.17,182.14,42.58]
[1755800771589,0.67,182.16,182.15,5.71205294]
[1755800771800,0.67,182.16,182.14,48.29205294]
[1755800774074,0.67,182.19,182.15,19.99764695]
[1755800774275,0.67,182.19,182.17,19.30764695]
[1755800774873,0.67,182.21,182.18,48.27205294]
[1755800775072,0.06,182.2,182.19,19.30764695]
[1755800775710,0.06,182.2,182.19,19.99764695]
[1755800776007,0.06,182.2,182.19,61.86764695]
[1755800776380,0.06,182.2,182.19,62.55764695]
[1755800776580,0.06,182.2,182.19,56.84559401]
[1755800776783,0.06,182.2,182.19,62.55764695]
[1755800777004,0.06,182.2,182.19,68.0464224]
[1755800777473,0.06,182.2,182.19,62.55764695]
[1755800777674,0.06,182.2,182.19,61.86764695]
[1755800779404,0.06,182.2,182.19,68.31074554]
[1755800781495,0.06,182.2,182.19,74.02279854]
[1755800785716,0.06,182.2,182.19,31.46279854]
[1755800785907,0.06,182.2,182.19,74.00279854]
[1755800787020,0.69,182.25,182.23,39.59559401]
[1755800787214,0.69,182.25,182.24,61.84764695]
[1755800787902,0.69,182.25,182.24,61.84764701]
[1755800790099,0.69,182.25,182.24,61.82764701]
[1755800791610,0.69,182.25,182.24,67.53969995]
[1755800794814,0.69,182.25,182.23,13.59559401]
[1755800795110,0.69,182.25,182.24,42.52]
[1755800795795,0.69,182.25,182.24,48.23205294]
[1755800795995,0.69,182.25,182.24,42.52]
[1755800803032,0.69,182.25,182.23,5.712053]
[1755800803221,0.69,182.25,182.23,61.80764701]
[1755800803624,0.79,182.26,182.23,67.51969995]
[1755800803823,0.79,182.26,182.23,62.47764701]
[1755800804116,0.69,182.25,182.23,61.80764701]
[1755800804817,0.75,182.25,182.23,61.80764701]
[1755800808137,0.06,182.25,182.23,61.80764701]
[1755800808312,0.06,182.25,182.23,62.52764701]
[1755800808917,0.06,182.25,182.23,61.80764701]
[1755800810135,0.72,182.24,182.22,13.59559401]
[1755800810344,0.72,182.24,182.22,56.09559401]
[1755800810542,0.72,182.24,182.22,61.80764701]
[1755800810748,0.78,182.25,182.22,61.80764701]
[1755800811057,0.78,182.25,182.22,62.52764701]
[1755800811428,0.06,182.25,182.22,62.52764701]
[1755800811625,0.06,182.25,182.22,61.80764701]
[1755800811827,0.78,182.25,182.22,61.80764701]
[1755800812128,0.06,182.25,182.22,20.02764701]
[1755800812353,0.06,182.25,182.22,19.30764701]
[1755800812646,0.78,182.25,182.22,19.30764701]
[1755800812863,0.72,182.24,182.22,19.30764701]
[1755800813321,0.06,182.25,182.22,19.30764701]
[1755800813525,0.06,182.25,182.22,20.02764701]
[1755800813846,0.06,182.25,182.22,25.7297051]
[1755800814142,0.06,182.25,182.23,6.42205809]
[1755800814340,0.06,182.25,182.22,25.7297051]
[1755800815050,0.06,182.25,182.23,0.72]
[1755800820438,0.06,182.25,182.23,6.42205809]
[1755800821769,0.72,182.24,182.22,61.80764701]
[1755800821933,6.42205809,182.23,182.2,0.03]
[1755800822133,6.42205809,182.22,182.2,0.03]
[1755800822662,0.06,182.25,182.21,6.42205809]
[1755800822865,0.06,182.25,182.22,6.42205809]
[1755800823437,0.06,182.25,182.22,0.72]
[1755800824166,5.76205809,182.25,182.22,0.72]
[1755800825244,6.48205809,182.25,182.21,13.59559401]
[1755800825456,5.76205809,182.25,182.24,26.0]
[1755800825972,5.76205809,182.25,182.23,26.0]
[1755800826141,6.48205809,182.25,182.24,26.0]
[1755800827060,6.48205809,182.25,182.21,0.72]
[1755800827250,5.70205809,182.24,182.23,26.0]
[1755800827449,0.78,182.25,182.23,26.0]
[1755800827783,6.48205809,182.25,182.23,26.0]
[1755800829757,6.48205809,182.25,182.2,54.71411609]
[1755800829758,0.06,182.25,182.24,6.42205809]
[1755800830083,0.06,182.25,182.24,20.0176521]
[1755800830772,0.06,182.25,182.24,22.2170851]
[1755800832844,0.06,182.25,182.24,27.70435463]
[1755800833064,0.06,182.25,182.24,22.2170851]
[1755800834376,0.06,182.25,182.24,27.70435463]
[1755800839283,0.06,182.25,182.24,22.00229654]
[1755800839487,0.06,182.25,182.24,27.70435463]
[1755800839780,0.06,182.25,182.24,53.70435463]
[1755800840184,0.06,182.25,182.24,33.69073586]
[1755800841265,0.06,182.25,182.24,15.79502701]
[1755800841464,0.06,182.25,182.24,21.4970851]
[1755800841667,0.06,182.25,182.24,63.9770851]
[1755800842704,0.06,182.25,182.24,15.79502701]
[1755800842860,0.06,182.25,182.24,58.25502701]
[1755800844063,0.06,182.25,182.24,13.59559401]
[1755800844478,0.63,182.25,182.24,13.59559401]
[1755800844684,0.63,182.25,182.24,42.46]
[1755800844987,0.06,182.25,182.24,42.46]
[1755800845893,0.06,182.25,182.23,53.92411609]
[1755800846191,6.27205809,182.24,182.2,0.03]
[1755800846490,0.71,182.23,182.21,13.59559401]
[1755800847066,0.06,182.25,182.2,0.03]
[1755800847067,6.41205809,182.22,182.2,0.03]
[1755800847291,0.71,182.21,182.2,0.03]
[1755800847788,6.41205809,182.23,182.2,0.03]
[1755800848162,0.71,182.23,182.2,0.03]
[1755800848561,5.70205809,182.24,182.2,6.42205809]
[1755800848862,6.41205809,182.24,182.2,6.42205809]
[1755800849060,0.71,182.23,182.2,6.42205809]
[1755800849777,5.70205809,182.24,182.2,0.03]
[1755800850102,0.71,182.22,182.2,0.03]
[1755800850472,0.71,182.21,182.2,0.03]
[1755800850873,6.41205809,182.21,182.2,0.03]
[1755800852381,6.41205809,182.21,182.18,0.03]
[1755800852382,26.0,182.19,182.18,0.03]
[1755800852621,42.07781229,182.19,182.18,0.03]
[1755800852900,38.39843932,182.19,182.16,0.03]
[1755800853105,11.68843932,182.17,182.16,0.03]
[1755800853468,12.39843932,182.17,182.16,0.03]
[1755800853903,0.28432314,182.16,182.09,0.03]
[1755800854206,5.70205809,182.12,182.09,0.03]
[1755800854707,6.41205809,182.12,182.09,0.03]
[1755800856572,0.71,182.15,182.09,0.03]
[1755800856793,5.70205809,182.13,182.09,13.62559401]
[1755800856998,5.70205809,182.13,182.11,0.72]
[1755800857591,5.70205809,182.14,182.12,0.69]
[1755800858682,5.70205809,182.13,182.11,0.03]
[1755800858897,5.70205809,182.12,182.11,0.03]
[1755800859195,5.70205809,182.13,182.11,0.72]
[1755800859375,5.70205809,182.13,182.12,0.69]
[1755800859999,5.70205809,182.14,182.12,0.69]
[1755800860220,5.70205809,182.15,182.13,0.69]
[1755800861476,5.70205809,182.15,182.14,0.69]
[1755800861678,5.70205809,182.18,182.14,0.69]
[1755800862005,42.48,182.2,182.15,19.2976521]
[1755800862179,42.48,182.2,182.16,0.69]
[1755800862385,48.18205809,182.2,182.17,0.69]
[1755800862906,5.76205809,182.21,182.18,0.69]
[1755800863311,5.70205809,182.2,182.18,0.69]
[1755800864510,5.70205809,182.2,182.17,13.59559401]
[1755800864999,0.06,182.21,182.18,0.69]
[1755800865197,5.76205809,182.21,182.18,0.69]
[1755800866610,0.06,182.21,182.18,0.69]
[1755800866822,5.76205809,182.21,182.18,0.69]
[1755800868299,6.42205809,182.21,182.17,14.31559401]
[1755800869018,5.76205809,182.21,182.18,0.72]
[1755800870124,5.70205809,182.2,182.17,13.59559401]
[1755800870426,6.36205809,182.2,182.17,13.59559401]
[1755800872423,5.76205809,182.21,182.18,0.72]
[1755800872738,6.42205809,182.21,182.17,13.59559401]
[1755800873034,6.36205809,182.2,182.17,13.59559401]
[1755800874004,6.36205809,182.2,182.16,13.62559401]
[1755800874205,5.70205809,182.2,182.17,0.72]
[1755800874424,5.70205809,182.2,182.16,19.3276521]
[1755800874620,5.70205809,182.2,182.18,0.72]
[1755800874805,5.70205809,182.2,182.16,20.0476521]
[1755800875006,0.06,182.21,182.17,0.72]
[1755800875210,6.36205809,182.2,182.16,13.62559401]
[1755800875406,5.70205809,182.2,182.17,0.72]
[1755800875820,6.36205809,182.2,182.17,0.72]
[1755800876434,6.36205809,182.2,182.16,13.62559401]
[1755800876641,6.36205809,182.2,182.16,14.34559401]
[1755800876936,6.36205809,182.2,182.17,0.72]
[1755800880223,5.76205809,182.21,182.17,0.72]
[1755800880429,5.76205809,182.21,182.18,0.72]
[1755800880819,6.36205809,182.2,182.16,14.34559401]
[1755800881020,0.06,182.21,182.16,0.03]
[1755800881021,5.70205809,182.18,182.16,0.03]
[1755800881231,6.36205809,182.18,182.16,0.03]
[1755800881526,0.66,182.18,182.16,0.03]
[1755800881931,0.66,182.17,182.16,0.03]
[1755800882135,6.36205809,182.17,182.16,0.03]
[1755800883022,6.64638123,182.17,182.16,0.03]
[1755800883412,12.34843932,182.17,182.16,0.03]
[1755800887550,6.36205809,182.17,182.16,0.03]
[1755800887752,48.82205809,182.17,182.16,0.03]
[1755800887918,49.10638123,182.17,182.16,0.03]
[1755800888125,48.96421966,182.17,182.16,0.03]
[1755800888423,48.44638123,182.17,182.16,0.03]
[1755800889017,49.10638123,182.17,182.16,0.03]
[1755800889221,48.82205809,182.17,182.16,0.03]
[1755800889432,6.36205809,182.17,182.16,0.03]
[1755800889633,48.82205809,182.17,182.16,0.03]
[1755800890147,49.10638123,182.17,182.16,0.03]
[1755800904459,6.64638123,182.17,182.16,0.03]
[1755800904666,49.10638123,182.17,182.16,0.03]
[1755800906875,49.16638123,182.17,182.16,0.03]
[1755800913459,54.86843932,182.17,182.16,0.03]
[1755800916757,49.16638123,182.17,182.16,0.03]
[1755800917170,52.86118362,182.17,182.16,0.03]
[1755800917485,48.50638123,182.17,182.16,0.03]
[1755800917691,48.22205809,182.17,182.16,0.7]
[1755800918052,42.80432314,182.17,182.16,0.7]
[1755800918372,48.50638123,182.17,182.16,0.7]
[1755800921284,48.50638123,182.17,182.16,0.03]
[1755800921982,49.20638123,182.17,182.16,0.03]
[1755800923056,54.90843932,182.17,182.16,0.03]
[1755800923265,58.60832409,182.17,182.16,0.03]
[1755800924564,52.906266,182.17,182.16,0.03]
[1755800925058,58.60832409,182.17,182.16,0.03]
[1755800926388,52.906266,182.17,182.16,0.03]
[1755800927395,52.206266,182.17,182.16,0.03]
[1755800928695,52.186266,182.17,182.16,0.03]
[1755800928878,9.746266,182.17,182.16,0.73]
[1755800929210,52.186266,182.17,182.16,0.73]
[1755800929574,52.186266,182.17,182.16,0.03]
[1755800929775,52.186266,182.17,182.16,0.73]
[1755800930382,46.19988477,182.17,182.16,0.73]
[1755800930786,51.90194286,182.17,182.16,0.73]
[1755800930986,48.20205809,182.17,182.16,0.73]
[1755800931509,52.91149933,182.17,182.16,0.03]
[1755800932609,58.61355742,182.17,182.16,0.03]
[1755800932990,72.20915143,182.17,182.16,0.03]
[1755800933194,13.87991715,182.14,182.12,0.03]
[1755800933387,48.42638123,182.13,182.12,0.03]
[1755800933582,49.14638123,182.13,182.12,0.03]
[1755800933913,52.8518518,182.13,182.12,0.03]
[1755800936217,0.28432314,182.12,182.11,0.03]
[1755800936511,24.00744581,182.12,182.11,0.03]
[1755800936735,10.4118518,182.12,182.11,0.03]
[1755800936899,9.6918518,182.12,182.11,0.03]
[1755800937096,10.4118518,182.12,182.11,0.03]
[1755800938124,24.00744581,182.12,182.11,0.03]
[1755800940395,9.54969023,182.12,182.11,0.73]
[1755800940620,51.98969023,182.12,182.11,0.03]
[1755800940808,52.1318518,182.12,182.11,0.03]
[1755800941622,78.1318518,182.12,182.11,0.03]
[1755800942622,74.42638123,182.12,182.11,0.03]
[1755800943235,48.42638123,182.12,182.11,0.03]
[1755800945493,49.14638123,182.12,182.11,0.03]
[1755800946327,48.42638123,182.12,182.11,0.03]
[1755800946508,49.14638123,182.12,182.11,0.03]
[1755800946726,42.72432314,182.12,182.11,0.03]
[1755800946900,48.42638123,182.12,182.11,0.03]
[1755800954512,48.42638123,182.12,182.11,0.73]
[1755800954707,74.42638123,182.12,182.11,0.73]
[1755800955209,48.14205809,182.12,182.11,0.73]
[1755800960348,48.14205809,182.12,182.11,0.03]
[1755800960635,42.72432314,182.12,182.11,0.03]
[1755800960841,48.42638123,182.12,182.11,0.03]
[1755800962242,49.08638123,182.12,182.11,0.03]
[1755800962642,48.42638123,182.12,182.11,0.03]
[1755800963236,49.08638123,182.12,182.11,0.03]
[1755800967040,52.78551097,182.12,182.11,0.03]
[1755800969136,52.12551097,182.12,182.11,0.03]
[1755800971773,52.18551097,182.12,182.11,0.03]
[1755800972435,52.84551097,182.12,182.11,0.03]
[1755800973249,52.18551097,182.12,182.11,0.03]
[1755800974160,35.46118783,182.12,182.11,0.73]
[1755800974454,68.76432314,182.12,182.11,0.73]
[1755800974635,42.62216157,182.12,182.11,0.73]
[1755800974837,42.76432314,182.12,182.11,0.73]
[1755800975644,48.46638123,182.12,182.11,0.73]
[1755800975832,42.76432314,182.12,182.11,0.73]
[1755800977052,42.48,182.12,182.11,0.73]
[1755800978460,48.18205809,182.12,182.11,0.73]
[1755800979355,42.48,182.12,182.11,0.73]
[1755800979571,48.18205809,182.12,182.11,0.73]
[1755800981068,49.12638123,182.12,182.11,0.03]
[1755800981231,75.12638123,182.12,182.11,0.03]
[1755800981853,78.83119851,182.12,182.11,0.03]
[1755800982541,47.12914042,182.12,182.11,0.03]
[1755800982859,52.83119851,182.12,182.11,0.03]
[1755800998448,52.17119851,182.12,182.11,0.03]
[1755800998775,52.89119851,182.12,182.11,0.03]
[1755800998979,52.17119851,182.12,182.11,0.03]
[1755800999471,52.89119851,182.12,182.11,0.03]
[1755801000369,29.76481728,182.12,182.11,0.7]
[1755801000575,50.1257378,182.12,182.11,0.7]
[1755801000757,76.1257378,182.12,182.11,0.7]
[1755801001875,75.98357623,182.12,182.11,0.7]
[1755801002252,76.1257378,182.12,182.11,0.7]
[1755801003577,76.1057378,182.12,182.11,0.7]
[1755801003746,72.40092052,182.12,182.11,0.7]
[1755801003949,76.10441321,182.12,182.11,0.7]
[1755801004576,78.1604993,182.12,182.11,0.7]
[1755801004786,72.44781583,182.12,182.11,0.7]
[1755801005073,78.1604993,182.12,182.11,0.7]
[1755801005458,72.44781583,182.12,182.11,0.7]
[1755801005670,78.1604993,182.12,182.11,0.7]
[1755801006752,78.1604993,182.12,182.11,0.03]
[1755801009373,78.1604993,182.12,182.11,0.7]
[1755801010371,78.1604993,182.12,182.11,0.03]
[1755801010576,78.8804993,182.12,182.11,0.03]
[1755801010777,78.1604993,182.12,182.11,0.03]
[1755801011491,78.8804993,182.12,182.11,0.03]
[1755801011708,52.8804993,182.12,182.11,0.03]
[1755801011904,31.99700661,182.1,182.09,0.03]
[1755801012199,13.87991715,182.09,182.07,0.03]
[1755801012490,11.70969008,182.07,182.06,0.03]
[1755801012701,15.41318277,182.07,182.06,0.03]
[1755801013066,9.7004993,182.07,182.06,0.7]
[1755801013268,5.99700661,182.07,182.06,0.7]
[1755801013473,48.11268347,182.07,182.06,0.7]
[1755801013674,51.81617616,182.07,182.06,0.7]
[1755801013871,48.11268347,182.07,182.06,0.7]
[1755801015787,42.4,182.07,182.06,0.7]
[1755801015987,48.11268347,182.07,182.06,0.7]
[1755801016489,48.39700661,182.07,182.06,0.7]
[1755801016817,58.53357656,182.07,182.06,0.03]
[1755801017580,190.93357656,182.07,182.06,0.03]
[1755801018500,58.53357656,182.07,182.06,0.03]
[1755801019319,26.0,182.05,182.03,0.03]
[1755801019495,91.6964871,182.05,182.03,0.03]
[1755801019799,0.28432314,182.04,182.03,0.03]
[1755801020099,0.28432314,182.04,182.01,0.03]
[1755801020100,26.28432314,182.02,182.01,0.03]
[1755801020293,31.99700661,182.02,182.01,0.75]
[1755801020501,74.39700661,182.02,182.01,0.75]
[1755801020706,78.09818431,182.02,182.01,0.75]
[1755801020912,74.39700661,182.02,182.01,0.75]
[1755801021207,48.11268347,182.02,182.01,0.75]
[1755801022507,48.11268347,182.02,182.01,0.03]
[1755801022508,48.25484504,182.02,182.01,0.03]
[1755801022709,75.10700661,182.02,182.01,0.03]
[1755801023223,74.39700661,182.02,182.01,0.03]
[1755801024490,48.39700661,182.02,182.01,0.03]
[1755801024894,49.10700661,182.02,182.01,0.03]
[1755801025911,52.80573147,182.02,182.01,0.03]
[1755801027091,0.28432314,182.01,182.0,0.03]
[1755801027407,9.69573147,182.01,182.0,0.03]
[1755801028100,10.40573147,182.01,182.0,0.03]
[1755801029206,0.28432314,181.98,181.97,0.2]
[1755801029490,0.28432314,181.98,181.96,0.03]
[1755801029491,0.28432314,181.97,181.96,0.03]
[1755801029801,26.28432314,181.95,181.92,0.92]
[1755801029995,75.10700661,181.95,181.92,0.2]
[1755801030196,74.39700661,181.95,181.92,0.2]
[1755801030921,74.39700661,181.95,181.92,0.92]
[1755801031084,74.97700661,181.95,181.92,0.2]
[1755801031291,0.28432314,181.94,181.92,0.2]
[1755801031598,48.41700661,181.93,181.92,0.2]
[1755801032415,48.41700661,181.93,181.92,0.92]
[1755801033536,42.42,181.93,181.92,0.92]
[1755801033827,48.13268347,181.93,181.92,0.92]
[1755801037426,48.41700661,181.93,181.92,0.2]
[1755801038831,48.41700661,181.93,181.92,0.92]
[1755801039013,48.13268347,181.93,181.92,0.92]
[1755801042194,5.71268347,181.96,181.92,0.92]
[1755801042399,42.42,181.95,181.93,0.72]
[1755801042600,138.11268347,181.97,181.93,0.72]
[1755801042808,42.42,181.96,181.93,6.43268347]
[1755801043012,42.42,181.96,181.93,5.71268347]
[1755801043233,0.06,181.98,181.94,20.02827748]
[1755801043551,42.42,181.97,181.95,6.43268347]
[1755801043711,5.71268347,181.96,181.95,0.72]
[1755801044034,5.71268347,181.96,181.92,0.92]
[1755801044190,5.71268347,181.93,181.92,0.92]